bitfinex/quotes_ETHUSD_20250411
["timestamp","ask_amount","ask_price","bid_price","bid_amount"]
[1744384368510,4.4186,1560.7,1560.4,12.81699]
[1744384368704,4.4186,1560.7,1560.4,12.81697]
[1744384369045,10.82599,1560.7,1560.4,6.40848]
[1744384369351,4.4186,1560.7,1560.5,6.40816]
[1744384369508,4.4186,1560.7,1560.4,12.81689]
[1744384369909,6.84968,1560.6,1560.3,6.40889]
[1744384370148,0.44186,1560.6,1560.3,12.81777]
[1744384370345,0.44186,1560.6,1560.3,6.40886]
[1744384370644,4.4186,1560.7,1560.5,6.4082]
[1744384371553,4.4186,1560.7,1560.1,1.3413]
[1744384371711,12.81669,1560.5,1560.1,7.75096]
[1744384372217,12.81669,1560.5,1560.1,14.16065]
[1744384372415,6.40863,1560.4,1560.1,14.16065]
[1744384372647,14.099116,1560.4,1560.1,7.75096]
[1744384372855,14.099116,1560.4,1560.0,12.82036]
[1744384373211,14.157396,1560.4,1560.1,6.40978]
[1744384373453,14.157396,1560.4,1560.0,12.82036]
[1744384373773,7.690426,1560.4,1560.1,12.81941]
[1744384374057,6.40974,1560.2,1559.8,6.41104]
[1744384374260,6.09,1560.2,1559.4,4.27080236]
[1744384374551,6.4112,1559.8,1559.5,14.1954]
[1744384374749,6.09,1559.9,1559.5,7.78309]
[1744384374955,58.011696,1560.4,1559.6,1.3345]
[1744384374956,0.7690426,1560.3,1559.6,1.3345]
[1744384375110,6.40893,1560.4,1560.0,7.74462]
[1744384375307,6.46703,1560.4,1560.0,14.15475]
[1744384375511,6.46687,1560.4,1560.0,7.74462]
[1744384375737,1.345607,1560.4,1560.1,6.40971]
[1744384375937,11.1521,1560.6,1560.3,6.40902]
[1744384376347,11.1521,1560.6,1560.3,6.40888]
[1744384376557,8.1521,1560.6,1560.3,12.81779]
[1744384376763,14.49939,1560.7,1560.2,6.40932]
[1744384377052,9.40828,1560.5,1560.1,12.81939]
[1744384377225,9.40828,1560.5,1560.2,6.40932]
[1744384377676,3.0,1560.5,1560.3,6.40901]
[1744384378059,3.0,1560.5,1560.2,12.81863]
[1744384378303,4.449939,1560.6,1560.1,0.06409178]
[1744384378487,0.4449939,1560.5,1560.2,12.81846]
[1744384378656,0.4449939,1560.5,1560.3,6.40899]
[1744384379061,0.80474668,1561.3,1560.7,6.40732]
[1744384379270,6.46414,1561.1,1560.7,6.40732]
[1744384379499,12.8701,1561.1,1560.7,6.40723]
[1744384379701,3.0,1561.0,1560.7,6.40723]
[1744384379885,12.67901,1561.0,1560.5,6.40788]
[1744384380093,6.40675,1560.9,1560.6,6.40776]
[1744384380296,6.40697,1560.8,1560.3,6.40888]
[1744384380463,8.1501,1560.7,1560.4,6.40836]
[1744384380861,14.55765,1560.7,1560.4,6.40836]
[1744384381079,1.455765,1560.6,1560.5,6.4082]
[1744384381324,8.1501,1560.7,1560.5,6.4082]
[1744384382007,14.55754,1560.7,1560.4,6.40836]
[1744384383063,8.1501,1560.7,1560.4,12.81685]
[1744384383271,14.55764,1560.7,1560.3,6.40897]
[1744384383499,0.81501,1560.6,1560.3,12.81782]
[1744384384009,3.81501,1560.6,1560.2,6.40926]
[1744384384303,22.72084,1560.6,1560.2,6.40926]
[1744384384504,5.272084,1560.5,1560.3,6.40876]
[1744384384709,3.0,1560.5,1560.2,6.4093]
[1744384384878,3.0,1560.5,1560.2,6.40924]
[1744384385214,3.0,1560.5,1560.3,6.40898]
[1744384385566,3.0,1560.5,1560.2,6.40924]
[1744384385802,6.90501,1560.6,1560.3,6.40886]
[1744384386106,13.31294,1560.6,1560.3,6.40886]
[1744384386461,13.31294,1560.6,1560.3,12.81776]
[1744384386664,6.90501,1560.6,1560.4,6.4086]
[1744384386865,6.90501,1560.6,1560.3,6.40886]
[1744384387066,6.09,1560.6,1560.4,6.40844]
[1744384387266,6.09,1560.6,1560.4,12.81691]
[1744384387467,6.09,1560.6,1560.4,6.40844]
[1744384387674,6.09,1560.6,1560.3,6.40895]
[1744384387876,6.09,1560.6,1560.3,6.40878]
[1744384388076,9.095512,1560.6,1560.4,6.40856]
[1744384388618,21.911622,1560.6,1560.2,6.40924]
[1744384388778,15.503452,1560.6,1560.2,6.40924]
[1744384389217,3.0,1560.5,1560.0,1.3321]
[1744384389480,6.41039,1560.0,1559.7,7.73078]
[1744384389680,6.46888,1559.9,1559.6,6.41176]
[1744384389880,0.0581,1559.9,1559.6,6.41176]
[1744384390140,0.0581,1559.9,1559.4,10.68340236]
[1744384390141,6.1481,1559.9,1559.4,10.68340236]
[1744384390439,6.41129,1559.8,1559.5,6.41218]
[1744384391434,9.4117,1559.7,1559.4,4.27080236]
[1744384391608,8.092,1559.6,1559.4,4.27080236]
[1744384391810,8.092,1559.6,1559.4,6.41251]
[1744384392234,8.092,1559.6,1559.5,6.41231]
[1744384392439,8.092,1559.6,1559.4,12.82504]
[1744384392798,9.09,1559.7,1559.5,12.82462]
[1744384393032,6.09,1559.7,1559.5,6.41231]
[1744384393229,12.5015,1559.7,1559.4,12.82529]
[1744384393502,6.41192,1559.6,1559.3,12.82614]
[1744384393727,6.41192,1559.6,1559.3,6.41307]
[1744384393922,6.41192,1559.6,1559.3,12.82608]
[1744384394123,6.41192,1559.6,1559.3,6.41301]
[1744384394337,12.5015,1559.7,1559.3,6.41301]
[1744384394539,8.790466,1559.7,1559.4,6.41259]
[1744384394703,8.790466,1559.7,1559.5,6.41218]
[1744384395502,15.201956,1559.7,1559.4,6.41259]
[1744384396541,12.82422,1559.6,1559.3,6.41301]
[1744384396700,12.82407,1559.6,1559.3,6.41311]
[1744384396903,2.1614536,1559.6,1559.3,6.41299]
[1744384397138,6.41242,1559.5,1559.2,7.72203]
[1744384397340,6.41242,1559.5,1559.0,7.78585]
[1744384397341,14.50572,1559.4,1559.0,7.78585]
[1744384397513,9.1481,1559.3,1558.9,10.68544236]
[1744384397729,6.41397,1559.1,1558.9,4.27080236]
[1744384398252,12.50397,1559.1,1558.9,4.27080236]
[1744384398848,24.20646,1559.0,1558.9,4.27080236]
[1744384399053,24.20646,1559.0,1558.5,5.59662701]
[1744384399054,6.41601,1558.6,1558.5,5.59662701]
[1744384399350,24.78997745,1558.6,1558.5,5.59662701]
[1744384399550,17.883701,1558.6,1558.5,5.59662701]
[1744384399714,14.184,1558.6,1558.5,5.59662701]
[1744384399911,14.184,1558.6,1558.5,12.01304701]
[1744384400156,14.184,1558.6,1558.5,5.59662701]
[1744384400357,14.184,1558.6,1558.5,12.01304701]
[1744384400563,14.184,1558.8,1558.5,12.01304701]
[1744384400759,14.184,1558.8,1558.5,13.21435171]
[1744384401064,8.094,1558.8,1558.6,6.41586]
[1744384401856,8.094,1558.8,1558.5,7.6176847]
[1744384402042,6.41574,1558.7,1558.3,7.701]
[1744384402450,6.41574,1558.7,1558.4,6.41683]
[1744384402656,6.41608,1558.6,1558.3,1.2839]
[1744384402860,6.41608,1558.6,1558.2,6.4174]
[1744384403173,6.41645,1558.5,1558.2,6.4174]
[1744384403537,6.41645,1558.5,1558.2,12.8349]
[1744384403738,1.283253,1558.5,1558.1,1.4224]
[1744384403934,12.835,1558.3,1558.1,0.05]
[1744384404169,12.9149,1558.3,1558.1,0.05]
[1744384404670,12.91474,1558.3,1558.1,0.05]
[1744384404868,3.0,1558.3,1558.1,0.05]
[1744384405270,9.41739,1558.3,1558.1,0.05]
[1744384405455,7.359399,1558.2,1558.1,0.05]
[1744384406341,10.359399,1558.2,1558.1,0.05]
[1744384407281,3.0,1558.2,1558.1,0.05]
[1744384407575,9.41766,1558.2,1558.1,0.05]
[1744384408079,3.0,1558.2,1558.1,0.05]
[1744384408376,6.09,1558.3,1558.1,0.05]
[1744384408674,6.09,1558.3,1558.1,6.46788]
[1744384409042,6.09,1558.3,1558.2,6.41766]
[1744384409269,6.09,1558.3,1558.1,12.88581]
[1744384409681,6.09,1558.3,1558.1,6.46788]
[1744384409977,8.097,1558.4,1558.1,6.46788]
[1744384409978,14.187,1558.4,1558.1,0.05]
[1744384410186,14.187,1558.4,1558.2,6.41766]
[1744384410387,14.187,1558.4,1558.2,12.83532]
[1744384410747,14.187,1558.4,1558.2,14.257462]
[1744384410947,14.187,1558.4,1558.1,1.3861]
[1744384411189,14.187,1558.4,1558.1,0.05]
[1744384411386,6.41731,1558.3,1558.1,0.05]
[1744384411590,20.6042,1558.4,1558.1,6.46802]
[1744384411759,27.0213,1558.4,1558.1,6.46802]
[1744384411960,23.60623,1558.4,1558.1,12.88604]
[1744384412253,23.60623,1558.4,1558.2,6.41765]
[1744384412254,14.187,1558.4,1558.2,6.41765]
[1744384413690,14.187,1558.4,1558.1,12.88598]
[1744384413897,14.187,1558.4,1558.2,6.41762]
[1744384414071,20.60391,1558.4,1558.1,0.05]
[1744384414390,6.41745,1558.3,1558.1,0.05]
[1744384414691,22.964291,1558.4,1558.1,0.05]
[1744384414858,29.381341,1558.4,1558.1,0.05]
[1744384416197,14.187,1558.4,1558.1,0.05]
[1744384416396,14.187,1558.4,1558.3,7.72384]
[1744384417059,12.91139,1558.7,1558.4,6.4167]
[1744384417384,11.099,1558.6,1558.4,6.4167]
[1744384417580,17.51503,1558.6,1558.3,14.14092]
[1744384417956,6.41646,1558.5,1558.3,1.3066]
[1744384418593,17.5151,1558.6,1558.3,7.72379]
[1744384418782,6.41654,1558.5,1558.3,1.3066]
[1744384419594,14.5151,1558.6,1558.3,7.72372]
[1744384419794,14.5151,1558.6,1558.3,7.72371]
[1744384419795,20.93127,1558.6,1558.3,7.72371]
[1744384419986,14.5151,1558.6,1558.3,7.72371]
[1744384420197,14.5151,1558.6,1558.3,14.14082]
[1744384420390,14.5151,1558.6,1558.3,7.72371]
[1744384420697,14.5151,1558.6,1558.3,14.14083]
[1744384420899,14.5151,1558.6,1558.3,7.72371]
[1744384421083,8.099,1558.6,1558.3,7.72371]
[1744384421488,14.51516,1558.6,1558.3,1.3066]
[1744384421798,6.41575,1558.7,1558.4,6.41671]
[1744384422100,6.41575,1558.7,1558.4,6.4167]
[1744384422673,6.41575,1558.7,1558.4,12.83342]
[1744384422976,6.41594,1558.7,1558.3,7.7236]
[1744384423201,6.41594,1558.7,1558.4,6.41683]
[1744384423503,3.0,1558.8,1558.5,0.06416785]
[1744384423663,20.92908,1558.9,1558.6,6.41593]
[1744384423865,14.51397,1558.9,1558.6,12.83183]
[1744384424098,8.099,1558.9,1558.7,6.41557]
[1744384424697,14.5139,1558.9,1558.6,7.7633]
[1744384424999,8.099,1558.9,1558.6,7.7633]
[1744384425203,8.099,1558.9,1558.7,6.41554]
[1744384425663,14.51379,1558.9,1558.6,14.1792]
[1744384425864,14.51379,1558.9,1558.6,7.7633]
[1744384426098,23.638787,1558.9,1558.6,1.3474]
[1744384426298,10.808817,1558.9,1558.6,7.7633]
[1744384426505,17.223707,1558.9,1558.6,7.76332]
[1744384427412,4.39584773,1558.7,1558.1,0.05]
[1744384427616,12.83482,1558.3,1558.1,0.05]
[1744384427785,6.41766,1558.2,1558.1,0.05]
[1744384427985,20.93282,1558.3,1558.1,0.05]
[1744384428173,6.41766,1558.2,1558.1,0.05]
[1744384428510,18.347866,1558.2,1558.1,0.05]
[1744384429510,12.06320809,1558.2,1558.1,0.05]
[1744384432310,12.06320809,1558.2,1558.1,0.2996]
[1744384433512,18.15320809,1558.2,1558.1,0.2996]
[1744384436109,15.58756,1558.2,1558.1,0.2996]
[1744384437302,16.06824222,1558.2,1558.1,0.2996]
[1744384439334,16.61824222,1558.2,1558.1,1e-05]
[1744384439644,6.42044,1557.6,1557.4,1.3141]
[1744384440003,6.42054,1557.5,1557.4,1.3141]
[1744384440249,6.42013,1557.6,1557.2,1.3438]
[1744384440415,9.09,1557.5,1557.2,1.3438]
[1744384440712,9.09,1557.5,1557.3,12.84247]
[1744384440927,9.09,1557.5,1557.4,6.42095]
[1744384441555,9.09,1557.5,1557.3,12.84247]
[1744384441756,6.09,1557.5,1557.4,6.42095]
[1744384441922,6.09,1557.5,1557.4,9.072667]
[1744384442254,6.09,1557.5,1557.4,2.651717]
[1744384442438,12.51054,1557.5,1557.4,1.3675]
[1744384442612,6.09,1557.5,1557.4,1.3675]
[1744384443010,6.09,1557.9,1557.4,7.78845]
[1744384443212,6.09,1557.9,1557.7,6.41957]
[1744384443447,6.09,1557.9,1557.6,12.8401]
[1744384443448,12.50891,1557.9,1557.6,12.8401]
[1744384443746,6.09,1557.9,1557.7,6.41968]
[1744384443951,3.0,1558.0,1557.8,7.736]
[1744384444111,3.0,1558.0,1557.8,1.3167]
[1744384444311,3.0,1557.9,1557.8,1.3167]
[1744384444617,9.41889,1557.9,1557.6,1.29042968]
[1744384444912,15.83797,1557.9,1557.6,6.42002]
[1744384445115,9.09,1557.9,1557.5,1.2727]
[1744384445754,6.41986,1557.7,1557.5,1.2727]
[1744384446046,12.84046,1557.6,1557.3,7.72554]
[1744384446212,9.42013,1557.6,1557.1,1.3162]
[1744384446408,6.42178,1557.2,1557.1,1.3162]
[1744384446620,6.42178,1557.2,1557.1,0.05]
[1744384447432,15.51178,1557.2,1557.1,0.05]
[1744384448328,15.62068,1557.2,1557.1,0.05]
[1744384448664,19.276858,1557.2,1557.1,0.05]
[1744384449336,20.30866176,1557.2,1557.1,0.05]
[1744384451568,19.167958,1557.2,1557.1,0.05]
[1744384451768,15.51178,1557.2,1557.1,0.05]
[1744384452131,16.06178,1557.2,1557.1,0.05]
[1744384452365,16.17068,1557.2,1557.1,0.05]
[1744384452930,15.51178,1557.2,1557.1,0.05]
[1744384454067,15.98683232,1557.2,1557.1,0.05]
[1744384454430,19.67962555,1557.2,1557.1,0.05]
[1744384456886,20.22962555,1557.2,1557.1,0.05]
[1744384457090,15.98683232,1557.2,1557.1,0.05]
[1744384460886,22.74383232,1557.2,1557.1,0.05]
[1744384461046,15.98683232,1557.2,1557.1,0.05]
[1744384461464,16.53683232,1557.2,1557.1,0.05]
[1744384465597,15.98683232,1557.2,1557.1,0.05]
[1744384465764,12.51178,1557.2,1557.1,0.05]
[1744384466157,15.51178,1557.2,1557.1,0.05]
[1744384466995,15.51178,1557.2,1557.1,0.03714173]
[1744384467457,6.09,1557.2,1557.1,6.45933173]
[1744384468396,6.09,1557.2,1557.1,7.8868789]
[1744384468596,14.188,1557.3,1557.2,6.42178]
[1744384468798,3.0,1556.9,1556.1,0.05]
[1744384469096,6.42345,1556.8,1556.5,1.3411]
[1744384469301,6.42425,1556.6,1556.5,1.3411]
[1744384469453,6.42425,1556.6,1556.3,1.3545]
[1744384469891,6.42468,1556.5,1556.3,1.3545]
[1744384470194,6.42467,1556.5,1556.3,1.3545]
[1744384470694,6.42508,1556.4,1556.3,1.3545]
[1744384472509,6.90154037,1556.4,1556.3,1.3545]
[1744384473515,6.42508,1556.4,1556.3,1.3545]
[1744384473717,20.94454,1556.5,1556.3,1.3545]
[1744384473915,6.42508,1556.4,1556.3,1.3545]
[1744384474120,6.4259,1556.2,1556.1,0.05]
[1744384474688,6.90573235,1556.2,1556.1,0.05]
[1744384475890,12.85136,1556.3,1556.1,0.05]
[1744384476093,6.42566,1556.3,1556.1,0.05]
[1744384476305,9.09,1556.2,1556.1,0.05]
[1744384476504,16.00257265,1556.2,1556.1,0.05]
[1744384479217,18.9413,1556.3,1556.1,1.3818]
[1744384479427,12.51564,1556.3,1556.1,1.3818]
[1744384479892,6.09,1556.3,1556.1,7.80804]
[1744384480097,6.09,1556.3,1556.1,8.588844]
[1744384480319,6.09,1556.3,1556.1,2.162604]
[1744384480621,12.51549,1556.3,1556.1,1.3818]
[1744384481986,6.09,1556.3,1556.1,7.80808]
[1744384482226,14.185,1556.5,1556.1,1.44606035]
[1744384482395,12.51479,1556.5,1556.1,7.87225035]
[1744384482600,12.51479,1556.5,1556.2,6.42576]
[1744384482851,12.51479,1556.5,1556.2,13.63872204]
[1744384483815,12.51479,1556.5,1556.2,7.21294204]
[1744384484015,12.51479,1556.5,1556.2,7.27719371]
[1744384484227,6.42566,1556.3,1556.1,1.3818]
[1744384484409,12.98717279,1556.5,1556.1,7.80797]
[1744384484709,19.41218279,1556.5,1556.2,6.4259]
[1744384485026,12.98717279,1556.5,1556.2,6.4259]
[1744384485235,12.98717279,1556.5,1556.2,6.42577]
[1744384485531,6.42521,1556.4,1556.1,7.80802]
[1744384485700,6.42521,1556.4,1556.1,14.23423]
[1744384486035,6.42521,1556.4,1556.1,14.23421]
[1744384486214,14.92839707,1556.5,1556.2,12.91601944]
[1744384486215,12.51474,1556.5,1556.2,12.91601944]
[1744384486635,18.93968,1556.5,1556.2,6.42579]
[1744384486939,12.51474,1556.5,1556.2,6.42587]
[1744384487412,18.93969,1556.5,1556.2,6.42587]
[1744384487813,18.93969,1556.5,1556.2,12.85166]
[1744384487814,12.51474,1556.5,1556.2,12.85166]
[1744384488642,7.983909,1556.5,1556.1,7.80793]
[1744384488839,6.09,1556.5,1556.1,7.80793]
[1744384489045,6.09,1556.5,1556.1,1.3818]
[1744384489343,12.85154,1556.3,1556.1,1.3818]
[1744384489651,12.85047,1556.4,1556.1,1.3818]
[1744384490239,6.4259,1556.2,1556.1,1.3818]
[1744384490419,6.42566,1556.3,1556.1,1.3818]
[1744384490601,6.42565,1556.3,1556.1,1.3818]
[1744384490803,8.098,1556.4,1556.2,6.42572]
[1744384491115,20.94853,1556.4,1556.1,1.3818]
[1744384491443,20.94844,1556.4,1556.1,7.80811]
[1744384491643,12.85139,1556.3,1556.1,1.3818]
[1744384492118,6.42551,1556.3,1556.1,1.3818]
[1744384492316,14.52312,1556.4,1556.1,7.80798]
[1744384492543,14.52312,1556.4,1556.1,14.23419]
[1744384492748,8.098,1556.4,1556.2,6.42561]
[1744384492934,14.52324,1556.4,1556.1,7.80803]
[1744384493243,14.52324,1556.4,1556.1,14.29849618]
[1744384493446,8.098,1556.4,1556.1,1.3818]
[1744384493657,6.4259,1556.2,1556.1,0.05]
[1744384493948,9.4259,1556.2,1556.1,0.05]
[1744384494105,16.00681399,1556.2,1556.1,0.05]
[1744384498456,16.11781399,1556.2,1556.1,0.05]
[1744384498622,19.4619325,1556.2,1556.1,0.05]
[1744384498823,20.0119325,1556.2,1556.1,0.05]
[1744384499138,19.4619325,1556.2,1556.1,0.05]
[1744384500433,19.3509325,1556.2,1556.1,0.05]
[1744384500653,20.0119325,1556.2,1556.1,0.05]
[1744384501024,0.111,1555.9,1555.3,1.3341]
[1744384501356,3.0,1555.7,1555.3,1.3341]
[1744384501554,5.0178,1555.7,1555.4,6.42908]
[1744384501851,5.0178,1555.7,1555.5,6.42864]
[1744384501852,3.0,1555.7,1555.5,6.42864]
[1744384502009,6.09,1556.1,1555.7,6.42797]
[1744384502211,6.42644,1556.1,1555.9,1.2878]
[1744384502409,9.42602,1556.2,1555.9,7.71466]
[1744384502892,12.62659,1556.3,1556.0,6.42673]
[1744384502893,6.09,1556.3,1556.0,6.42673]
[1744384503041,6.09,1556.3,1556.1,6.42619]
[1744384503223,6.42564,1556.3,1555.9,1.2878]
[1744384503548,12.85227,1556.2,1555.9,7.71472]
[1744384503923,15.85128,1556.3,1556.0,6.42662]
[1744384504126,6.42593,1556.2,1555.9,1.2878]
[1744384504348,15.87807548,1556.3,1556.0,6.42661]
[1744384504544,9.45244548,1556.3,1556.0,12.85321]
[1744384504727,9.42551,1556.3,1555.9,7.71484]
[1744384504922,6.42591,1556.2,1555.9,7.71481]
[1744384505125,6.42594,1556.2,1555.9,14.14183]
[1744384505514,9.42551,1556.3,1556.0,6.42657]
[1744384505718,15.87795548,1556.3,1556.0,6.42657]
[1744384506554,22.30368548,1556.3,1556.0,6.42657]
[1744384506759,22.30360548,1556.3,1556.0,6.42657]
[1744384507268,9.42551,1556.3,1556.0,12.85318]
[1744384507558,3.0,1556.3,1556.1,6.42629]
[1744384507927,64.282,1556.4,1556.2,6.42573]
[1744384508134,64.282,1556.4,1556.3,1.2687]
[1744384508343,6.09,1556.4,1556.3,1.2687]
[1744384508651,6.09,1556.4,1556.3,8.463633]
[1744384508824,6.09,1556.4,1556.3,7.69419]
[1744384509255,6.09,1556.4,1556.3,1.2687]
[1744384509454,12.51523,1556.4,1556.1,1.3234]
[1744384509669,12.51523,1556.4,1556.2,6.42578]
[1744384509670,6.09,1556.4,1556.2,6.42578]
[1744384509877,6.09,1556.4,1556.3,6.42549]
[1744384510872,12.51343,1556.8,1556.3,4.94847115]
[1744384511084,6.09,1556.8,1556.3,1.2863]
[1744384511282,6.42438,1556.6,1556.3,7.71168]
[1744384511484,6.42523,1556.4,1556.1,7.80533]
[1744384511687,6.732523,1556.4,1556.1,1.3792]
[1744384511863,6.42569,1556.3,1556.0,6.4267]
[1744384512068,6.732523,1556.4,1556.1,6.42602]
[1744384512386,6.09,1556.4,1556.3,7.69409]
[1744384512916,6.09,1556.4,1556.3,1.2686]
[1744384513075,6.699,1556.4,1556.1,1.2686]
[1744384513274,6.42676,1556.0,1555.6,7.69687]
[1744384513587,6.42686,1556.0,1555.7,6.42787]
[1744384514289,6.201,1556.1,1555.8,6.4272]
[1744384514457,7.463708,1556.1,1555.8,12.85455]
[1744384514652,13.890028,1556.1,1555.8,12.85464]
[1744384514990,13.779028,1556.1,1555.8,6.4272]
[1744384515190,13.779028,1556.1,1555.8,12.85463]
[1744384515403,13.779028,1556.1,1555.8,6.4272]
[1744384515590,13.779028,1556.1,1555.8,12.85461]
[1744384516096,13.779028,1556.1,1555.8,6.4272]
[1744384516387,6.09,1556.1,1556.0,6.42673]
[1744384516566,23.6037,1556.3,1556.0,6.42662]
[1744384516776,17.178,1556.3,1556.0,6.42662]
[1744384517002,23.60376,1556.3,1556.0,12.85323]
[1744384517162,17.178,1556.3,1556.0,12.85323]
[1744384517505,8.088,1556.3,1556.2,6.4259]
[1744384517680,12.51509,1556.4,1556.2,1.2839]
[1744384518269,12.51509,1556.4,1556.1,6.42624]
[1744384518468,6.42554,1556.3,1556.0,14.19003]
[1744384518707,8.319603,1556.3,1556.0,14.19001]
[1744384518907,14.745463,1556.3,1556.0,7.7634]
[1744384519310,8.319603,1556.3,1556.0,7.7634]
[1744384519508,6.42607,1556.2,1555.9,6.42712]
[1744384519710,6.42607,1556.2,1555.9,6.49138504]
[1744384520007,1.894063,1556.3,1556.1,6.4262]
[1744384520170,1.894063,1556.3,1556.0,12.85338]
[1744384520367,12.62618,1556.4,1556.1,6.42624]
[1744384520569,12.62618,1556.4,1556.0,6.42663]
[1744384520766,12.62618,1556.4,1556.1,6.42621]
[1744384520999,12.62618,1556.4,1555.9,0.06426504]
[1744384521000,6.09,1556.4,1555.8,5.03667115]
[1744384521191,6.4259,1556.3,1555.9,6.42702]
[1744384521390,7.0687,1556.2,1555.9,6.42702]
[1744384521704,7.0687,1556.2,1555.8,14.22936]
[1744384521906,17.82059,1556.2,1555.8,1.3745]
[1744384522206,6.42716,1555.9,1555.6,7.75372]
[1744384522502,12.51716,1555.9,1555.6,14.18198]
[1744384522707,6.09,1555.9,1555.7,6.42797]
[1744384523003,12.51718,1555.9,1555.6,7.75372]
[1744384523209,12.51718,1555.9,1555.6,14.18197]
[1744384523500,12.51718,1555.9,1555.6,7.75372]
[1744384523704,6.42768,1555.8,1555.6,1.3255]
[1744384523908,6.42801,1555.7,1555.4,7.81938]
[1744384524415,6.42801,1555.7,1555.4,1.3902]
[1744384524707,6.42881,1555.5,1555.2,17.42359506]
[1744384524883,18.94781,1555.5,1555.2,13.76142391]
[1744384525086,6.42962,1555.3,1555.2,7.33151391]
[1744384525421,6.09,1555.5,1555.3,6.4295]
[1744384525564,6.09,1555.5,1555.4,6.42921]
[1744384525771,6.09,1555.5,1555.4,7.70801]
[1744384525970,8.089,1555.8,1555.7,6.42797]
[1744384526190,12.51675,1556.0,1555.7,6.42797]
[1744384526713,14.179,1556.1,1555.6,0.06427673]
[1744384526884,14.179,1556.1,1555.8,6.42738]
[1744384527087,27.03211,1556.1,1555.7,12.85567]
[1744384527269,20.60545,1556.1,1555.7,6.42782]
[1744384527473,20.60541,1556.1,1555.8,6.42716]
[1744384527699,20.60541,1556.1,1555.8,7.81636]
[1744384527897,20.60541,1556.1,1555.8,14.24377]
[1744384528210,14.179,1556.1,1555.8,15.668197]
[1744384528512,6.09,1556.1,1555.8,7.72935]
[1744384528811,9.53308,1556.3,1555.9,6.42702]
[1744384529015,15.95873,1556.3,1556.0,6.42669]
[1744384529178,9.53308,1556.3,1556.0,6.42669]
[1744384529379,6.42558,1556.3,1556.0,12.91764018]
[1744384529605,12.85136,1556.3,1556.0,6.49095018]
[1744384529807,6.42558,1556.3,1556.0,12.91755018]
[1744384530008,6.42558,1556.3,1556.0,12.91747018]
[1744384530209,6.42558,1556.3,1556.0,6.49086018]
[1744384530411,6.42594,1556.2,1556.0,0.06426018]
[1744384530612,6.42672,1556.1,1555.8,1.3019]
[1744384530792,6.53407,1556.1,1555.7,6.42791]
[1744384531120,6.42727,1555.9,1555.6,7.70116]
[1744384531419,6.42764,1555.8,1555.5,6.42871]
[1744384531825,6.42764,1555.8,1555.5,12.85738]
[1744384532007,12.85548,1555.8,1555.5,6.42867]
[1744384532319,7.712614,1555.9,1555.6,6.42834]
[1744384532628,6.09,1556.1,1556.0,6.42673]
[1744384532797,6.42591,1556.2,1555.9,6.42702]
[1744384532987,12.85211,1556.2,1555.9,6.42702]
[1744384533187,6.42689,1556.0,1555.7,7.8151]
[1744384533402,12.85473,1555.9,1555.7,1.3872]
[1744384533694,6.42725,1555.9,1555.6,6.42838]
[1744384533898,6.42725,1555.9,1555.6,6.42826]
[1744384533899,12.51725,1555.9,1555.6,6.42826]
[1744384534119,18.94465,1555.9,1555.5,14.15448]
[1744384534325,12.51725,1555.9,1555.6,6.42835]
[1744384534684,12.51725,1555.9,1555.6,12.85663]
[1744384534885,6.09,1555.9,1555.7,6.42786]
[1744384535430,6.09,1555.9,1555.8,6.42756]
[1744384536097,6.09,1555.9,1555.8,7.71876]
[1744384536295,0.1075,1556.3,1556.0,6.42654]
[1744384536496,20.59311,1556.4,1556.1,12.85238]
[1744384536696,14.168,1556.4,1556.0,0.06426081]
[1744384536932,20.59311,1556.4,1556.1,6.42615]
[1744384537799,20.59311,1556.4,1556.1,12.85235]
[1744384538223,14.168,1556.4,1556.2,6.42577]
[1744384538426,12.62146,1556.7,1556.3,6.42549]
[1744384538614,19.04553,1556.7,1556.4,6.42505]
[1744384538826,6.09,1556.7,1556.4,6.42494]
[1744384538985,6.09,1556.7,1556.5,6.42465]
[1744384539190,6.09,1556.7,1556.4,14.13468]
[1744384539391,6.09,1556.7,1556.5,6.42457]
[1744384540019,12.51391,1556.7,1556.4,14.13474]
[1744384540216,12.51391,1556.7,1556.5,6.42462]
[1744384540217,6.09,1556.7,1556.5,6.42462]
[1744384540449,17.50065,1557.0,1556.6,6.42425]
[1744384540450,6.09,1557.0,1556.6,6.42425]
[1744384540644,0.1075,1557.1,1556.7,7.87797778]
[1744384540820,6.42387,1556.7,1556.4,7.838434]
[1744384541020,6.42387,1556.7,1556.4,6.42496]
[1744384541194,0.1075,1556.8,1556.5,6.42464]
[1744384541396,6.09,1556.9,1556.7,6.42369]
[1744384541603,0.59002178,1557.3,1556.8,1.3306]
[1744384541938,6.42253,1557.1,1556.8,1.3306]
[1744384542101,6.42241,1557.1,1556.8,1.3306]
[1744384542307,6.42241,1557.1,1556.8,7.75397]
[1744384542691,0.1075,1557.3,1556.8,1.3306]
[1744384542948,8.1835,1557.3,1556.8,7.75394]
[1744384543103,6.42224,1557.1,1556.8,1.3306]
[1744384543314,6.42275,1557.0,1556.7,6.42376]
[1744384543735,6.42348,1556.8,1556.3,1.3285]
[1744384543941,6.42348,1556.8,1556.5,6.42466]